fUST/lending_fUST_20251222
["ID","MTS","AMOUNT","RATE_DAILY","PERIOD"]
[399453266,1766366159822,500.0,6.789e-05,2]
[399453267,1766366159883,500.0,6.789e-05,2]
[399453268,1766366159942,500.0,6.789e-05,2]
[399453269,1766366162331,300.0,6.789e-05,2]
[399453271,1766366190367,229.00697732,6.789e-05,2]
[399453272,1766366202594,500.0,6.789e-05,2]
[399453273,1766366202641,500.0,6.789e-05,2]
[399453274,1766366202705,500.0,6.789e-05,2]
[399453275,1766366202752,500.0,6.789e-05,2]
[399453276,1766366202807,187.60340739,6.789e-05,2]
[399453277,1766366202830,312.39659261,6.789e-05,2]
[399453278,1766366202865,297.06661838,6.789e-05,2]
[399453279,1766366216515,725.74768502,6.79e-05,2]
[399453280,1766366222554,300.0,6.789e-05,2]
[399453281,1766366225029,5000.0,6.79e-05,2]
[399453282,1766366237871,-199.93475873,6.79e-05,2]
[399453283,1766366248913,3364.79910399,6.79e-05,2]
[399453284,1766366248936,1635.20089601,6.79e-05,2]
[399453285,1766366267895,-180.23486471,6.79e-05,2]
[399453286,1766366272016,5000.0,6.79e-05,2]
[399453287,1766366282863,300.0,6.789e-05,2]
[399453288,1766366320975,-5000.0,6.722e-05,2]
[399453289,1766366342012,0.01,6.722e-05,2]
[399453290,1766366342035,4999.99,6.722e-05,2]
[399453291,1766366352666,-300.0,6.789e-05,2]
[399453292,1766366365905,5000.0,6.79e-05,2]
[399453293,1766366389050,4400.01,6.79e-05,2]
[399453294,1766366389076,599.99,6.79e-05,2]
[399453295,1766366402775,296.0,6.789e-05,2]
[399453296,1766366409024,500.0,6.789e-05,2]
[399453297,1766366409333,500.0,6.789e-05,2]
[399453298,1766366409649,528.83494978,6.789e-05,2]
[399453299,1766366412811,5000.0,6.79e-05,2]
[399453300,1766366414785,500.0,6.789e-05,2]
[399453301,1766366414823,500.0,6.789e-05,2]
[399453302,1766366414878,500.0,6.789e-05,2]
[399453303,1766366414916,500.0,6.789e-05,2]
[399453304,1766366414957,424.08447145,6.789e-05,2]
[399453305,1766366415030,151.10057877,6.789e-05,2]
[399453306,1766366415054,348.89942123,6.789e-05,2]
[399453307,1766366418186,-159.79555647,6.79e-05,2]
[399453308,1766366418374,-10000.01,6.79e-05,2]
[399453325,1766366423978,169.9057501,3.73e-05,2]
[399453326,1766366437629,-5000.0,6.722e-05,2]
[399453327,1766366441592,0.01,6.756e-05,2]
[399453328,1766366441613,305.09565292,6.756e-05,2]
[399453329,1766366451680,5000.0,6.79e-05,2]
[399453330,1766366460091,4694.91434708,6.79e-05,2]
[399453331,1766366460120,305.08565292,6.79e-05,2]
[399453332,1766366460815,500.0,6.789e-05,2]
[399453333,1766366460862,424.08447145,6.789e-05,2]
[399453334,1766366460898,500.0,6.789e-05,2]
[399453335,1766366460944,500.0,6.789e-05,2]
[399453336,1766366460993,500.0,6.789e-05,2]
[399453337,1766366461029,500.0,6.789e-05,2]
[399453338,1766366476221,1409.64492369,6.79e-05,2]
[399453339,1766366477310,500.0,6.789e-05,2]
[399453340,1766366477343,500.0,6.789e-05,2]
[399453341,1766366477373,500.0,6.789e-05,2]
[399453342,1766366477405,500.0,6.789e-05,2]
[399453343,1766366482174,190.0,6.789e-05,2]
[399453344,1766366482911,500.0,6.789e-05,2]
[399453345,1766366483255,500.0,6.789e-05,2]
[399453346,1766366483548,500.0,6.789e-05,2]
[399453347,1766366483894,500.0,6.789e-05,2]
[399453348,1766366484332,1171.19495194,6.79e-05,2]
[399453349,1766366484356,3828.80504806,6.79e-05,2]
[399453350,1766366484793,500.0,6.789e-05,2]
[399453351,1766366485107,500.0,6.789e-05,2]
[399453352,1766366485415,500.0,6.789e-05,2]
[399453353,1766366486213,500.0,6.789e-05,2]
[399453354,1766366486331,500.0,6.789e-05,2]
[399453355,1766366486400,500.0,6.789e-05,2]
[399453356,1766366486435,500.0,6.789e-05,2]
[399453357,1766366486492,500.0,6.789e-05,2]
[399453358,1766366486552,305.77629338,6.789e-05,2]
[399453359,1766366486799,500.0,6.789e-05,2]
[399453360,1766366492504,500.0,6.789e-05,2]
[399453361,1766366492709,500.0,0.00032877,60]
[399453362,1766366493220,400.009,6.789e-05,2]
[399453363,1766366496818,-465.41965856,6.79e-05,2]
[399453364,1766366497031,-10000.01,6.79e-05,2]
[399453365,1766366497284,-10000.01,6.79e-05,2]
[399453366,1766366497471,-10000.01,6.79e-05,2]
[399453368,1766366497722,-10000.01,6.79e-05,2]
[399453369,1766366497885,-10000.01,6.79e-05,2]
[399453370,1766366503176,500.0,0.00032877,60]
[399453371,1766366520205,668.5,0.00032877,60]
[399453372,1766366563901,-5000.0,6.722e-05,2]
[399453373,1766366592373,-300.0,6.787e-05,2]
[399453374,1766366592405,-1200.0,6.787e-05,2]
[399453375,1766366684359,500.0,6.787e-05,2]
[399453376,1766366684394,500.0,6.787e-05,2]
[399453377,1766366684427,500.0,6.787e-05,2]
[399453378,1766366684464,500.0,6.787e-05,2]
[399453379,1766366684494,500.0,6.787e-05,2]
[399453380,1766366684522,500.0,6.787e-05,2]
[399453381,1766366684558,500.0,6.787e-05,2]
[399453382,1766366684585,500.0,6.787e-05,2]
[399453383,1766366684616,500.0,6.787e-05,2]
[399453384,1766366684656,500.0,6.787e-05,2]
[399453385,1766366684683,500.0,6.787e-05,2]
[399453386,1766366684711,500.0,6.787e-05,2]
[399453387,1766366684738,500.0,6.787e-05,2]
[399453388,1766366684764,334.07627936,6.787e-05,2]
[399453389,1766366684808,165.93372064,6.787e-05,2]
[399453390,1766366684829,334.06627936,6.787e-05,2]
[399453391,1766366684864,500.0,6.787e-05,2]
[399453392,1766366684895,606.7779618,6.787e-05,2]
[399453393,1766366685199,500.0,6.787e-05,2]
[399453394,1766366685227,500.0,6.787e-05,2]
[399453395,1766366685269,500.0,6.787e-05,2]
[399453396,1766366685297,500.0,6.787e-05,2]
[399453397,1766366685323,500.0,6.787e-05,2]
[399453398,1766366685356,500.0,6.787e-05,2]
[399453399,1766366685382,500.0,6.787e-05,2]
[399453400,1766366685430,500.0,6.787e-05,2]
[399453401,1766366685457,596.27171439,6.787e-05,2]
[399453402,1766366685488,500.0,6.787e-05,2]
[399453403,1766366685514,500.0,6.787e-05,2]
[399453404,1766366685554,500.0,6.787e-05,2]
[399453405,1766366685580,500.0,6.787e-05,2]
[399453406,1766366685617,510.4179086,6.787e-05,2]
[399453407,1766366685653,500.0,6.787e-05,2]
[399453408,1766366685686,500.0,6.787e-05,2]
[399453409,1766366685713,452.47613585,6.787e-05,2]
[399453410,1766366685733,47.52386415,6.787e-05,2]
[399453411,1766366685770,624.19781738,6.787e-05,2]
[399453412,1766366685804,500.0,6.787e-05,2]
[399453413,1766366685830,500.0,6.787e-05,2]
[399453414,1766366685856,500.0,6.787e-05,2]
[399453415,1766366685889,500.0,6.787e-05,2]
[399453416,1766366685917,500.0,6.787e-05,2]
[399453417,1766366685943,500.0,6.787e-05,2]
[399453418,1766366685976,500.0,6.787e-05,2]
[399453419,1766366686002,500.0,6.787e-05,2]
[399453420,1766366686029,500.0,6.787e-05,2]
[399453421,1766366686063,500.0,6.787e-05,2]
[399453422,1766366686093,500.0,6.787e-05,2]
[399453423,1766366686127,500.0,6.787e-05,2]
[399453424,1766366686154,500.0,6.787e-05,2]
[399453425,1766366686198,500.0,6.787e-05,2]
[399453426,1766366686232,500.0,6.787e-05,2]
[399453427,1766366686261,500.0,6.787e-05,2]
[399453428,1766366686294,500.0,6.787e-05,2]
[399453429,1766366686331,500.0,6.787e-05,2]
[399453430,1766366686888,328.28831847,6.787e-05,2]
[399453431,1766366686908,171.71168153,6.787e-05,2]
[399453432,1766366686937,500.0,6.787e-05,2]
[399453433,1766366686962,500.0,6.787e-05,2]
[399453434,1766366686995,500.0,6.787e-05,2]
[399453435,1766366687020,500.0,6.787e-05,2]
[399453436,1766366687049,500.0,6.787e-05,2]
[399453437,1766366687078,500.0,6.787e-05,2]
[399453438,1766366687113,500.0,6.787e-05,2]
[399453439,1766366687146,500.0,6.787e-05,2]
[399453440,1766366687182,500.0,6.787e-05,2]
[399453441,1766366687216,500.0,6.787e-05,2]
[399453442,1766366687248,500.0,6.787e-05,2]
[399453443,1766366687278,500.0,6.787e-05,2]
[399453444,1766366687311,500.0,6.787e-05,2]
[399453445,1766366687612,500.0,6.787e-05,2]
[399453446,1766366687639,500.0,6.787e-05,2]
[399453447,1766366687665,500.0,6.787e-05,2]
[399453448,1766366711822,-1893.5712643,6.788e-05,2]
[399453450,1766366731850,500.0,6.787e-05,2]
[399453451,1766366731894,500.0,6.787e-05,2]
[399453452,1766366731954,500.0,6.787e-05,2]
[399453453,1766366736694,-300.0,6.788e-05,2]
[399453454,1766366736728,-300.0,6.788e-05,2]
[399453455,1766366736761,-1200.0,6.788e-05,2]
[399453456,1766366741031,1000.0,0.0001,14]
[399453457,1766366750034,4602.28968189,6.788e-05,2]
[399453458,1766366781133,5000.0,6.789e-05,2]
[399453459,1766366804903,5000.0,6.789e-05,2]
[399453460,1766366828510,5000.0,6.789e-05,2]
[399453461,1766366851588,0.01,6.789e-05,2]
[399453462,1766366851612,4999.99,6.789e-05,2]
[399453464,1766366875287,5000.0,6.789e-05,2]
[399453465,1766366886379,0.02,6.69e-05,2]
[399453466,1766366886405,10000.01,6.69e-05,2]
[399453467,1766366886429,10000.01,6.69e-05,2]
[399453468,1766366886452,10000.01,6.69e-05,2]
[399453469,1766366886480,10000.01,6.69e-05,2]
[399453470,1766366886506,10000.01,6.69e-05,2]
[399453471,1766366886532,10000.01,6.69e-05,2]
[399453472,1766366886558,10000.01,6.69e-05,2]
[399453473,1766366886582,10000.01,6.69e-05,2]
[399453474,1766366886606,10000.01,6.69e-05,2]
[399453475,1766366914052,-226.00278585,6.623e-05,2]
[399453476,1766366917250,-255.81622234,6.623e-05,2]
[399453477,1766366919943,-158.05747073,6.623e-05,2]
[399453478,1766366942905,-252.35879506,6.557e-05,2]
[399453479,1766366945828,-307.09836629,6.557e-05,2]
[399453480,1766366948564,-310.4711364,6.557e-05,2]
[399453481,1766366951375,-278.08591794,6.557e-05,2]
[399453483,1766366953482,-372.24902152,6.557e-05,2]
[399453484,1766366955826,-355.91195796,6.557e-05,2]
[399453485,1766366959870,-3123.82480483,6.557e-05,2]
[399453486,1766366960054,-4360.12352108,6.623e-05,2]
[399453487,1766366966635,1279.76295784,6.623e-05,2]
[399453488,1766366966657,3720.23704216,6.623e-05,2]
[399453489,1766366982624,404.99272362,6.623e-05,2]
[399453490,1766366990994,5000.0,6.689e-05,2]
[399453491,1766367013481,209.21409828,0.00032777,60]
[399453492,1766367014753,5000.0,6.689e-05,2]
[399453523,1766367032069,-344.03019049,6.689e-05,2]
[399453525,1766367032079,-500.0,6.689e-05,2]
[399453527,1766367032088,-158.28549676,6.689e-05,2]
[399453610,1766367038067,-341.71450324,6.689e-05,2]
[399453612,1766367038077,-500.0,6.689e-05,2]
[399453614,1766367038087,-500.0,6.689e-05,2]
[399453616,1766367038096,-278.93532318,6.689e-05,2]
[399453618,1766367038106,-412.41978174,6.689e-05,2]
[399453619,1766367038115,-500.0,6.689e-05,2]
[399453622,1766367038125,-500.0,6.689e-05,2]
[399453624,1766367038134,-500.0,6.689e-05,2]
[399453626,1766367038143,-500.0,6.689e-05,2]
[399453627,1766367038153,-500.0,6.689e-05,2]
[399453630,1766367038162,-500.0,6.689e-05,2]
[399453631,1766367038172,-473.70918396,6.689e-05,2]
[399453633,1766367038181,-500.0,6.689e-05,2]
[399453635,1766367038190,-500.0,6.689e-05,2]
[399453637,1766367038199,-178.53088465,6.689e-05,2]
[399453639,1766367038208,-500.0,6.689e-05,2]
[399453641,1766367038217,-71.4639406,6.689e-05,2]
[399453644,1766367038229,-180.89485446,6.689e-05,2]
[399453646,1766367038239,-155.21787851,6.689e-05,2]
[399453648,1766367038248,-369.91440977,6.689e-05,2]
[399453650,1766367038257,-328.3375538,6.689e-05,2]
[399453652,1766367038266,-515.0,6.689e-05,2]
[399453654,1766367038275,-28653.05660872,6.69e-05,2]
[399453656,1766367038287,-3779.83177382,6.69e-05,2]
[399453658,1766367038298,-6100.50236508,6.69e-05,2]
[399453660,1766367038309,-23675.2439331,6.69e-05,2]
[399453663,1766367038320,-6923.34874644,6.69e-05,2]
[399453666,1766367038341,-5208.50448724,6.69e-05,2]
[399453668,1766367038355,-3153.84464492,6.69e-05,2]
[399453671,1766367038368,-23691.38248629,6.69e-05,2]
[399453675,1766367038396,0.01,6.689e-05,2]
[399453678,1766367038418,4999.99,6.689e-05,2]
[399453681,1766367038434,-358448.607421,6.69e-05,2]
[399453684,1766367038454,-176.28324756,6.789e-05,2]
[399453686,1766367038465,-299.00353986,6.789e-05,2]
[399453688,1766367038475,-600.0,6.822e-05,2]
[399453691,1766367038485,-150.10101188,7.045e-05,2]
[399453693,1766367038495,-720.0,7.504e-05,2]
[399453695,1766367038507,-150.0,7.812e-05,2]
[399453697,1766367038518,-150.0,8.184e-05,2]
[399453699,1766367038528,-555.39609013,8.219e-05,2]
[399453701,1766367038538,-864.0,8.254e-05,2]
[399453703,1766367038550,-186.79,8.556e-05,2]
[399453705,1766367038560,-15090.0660007,8.614e-05,2]
[399453707,1766367038570,-352.82417704,8.789e-05,2]
[399453709,1766367038580,-249.05,8.928e-05,2]
[399453711,1766367038591,-250.0,9.078e-05,2]
[399453713,1766367038601,-250.0,9.078e-05,2]
[399453715,1766367038611,-250.0,9.078e-05,2]
[399453717,1766367038621,-250.0,9.078e-05,2]
[399453719,1766367038630,-250.0,9.078e-05,2]
[399453721,1766367038641,-250.0,9.078e-05,2]
[399453723,1766367038650,-250.0,9.078e-05,2]
[399453726,1766367038663,-250.0,9.078e-05,2]
[399453728,1766367038672,-250.0,9.078e-05,2]
[399453730,1766367038682,-250.0,9.078e-05,2]
[399453732,1766367038692,-253.58015608,9.078e-05,2]
[399453734,1766367038701,-1000.0,9.08e-05,2]
[399453736,1766367038710,-311.32,9.3e-05,2]
[399453738,1766367038720,-373.58,9.672e-05,2]
[399453740,1766367038729,-263.95488838,9.789e-05,2]
[399453742,1766367038739,-1000.0,9.988e-05,2]
[399453744,1766367038749,-244.0,9.988e-05,2]
[399453746,1766367038761,-187.10954026,9.993e-05,2]
[399453748,1766367038775,-57.568055,9.993e-05,2]
[399453750,1766367038784,-264.68119686,0.00010003,2]
[399453752,1766367038796,-150.31880314,0.00010003,2]
[399453754,1766367038806,-435.85,0.00010044,2]
[399453756,1766367038816,-1041.66666667,0.00010259,2]
[399453758,1766367038826,-217.2670186,0.00010278,2]
[399453760,1766367038836,-498.11,0.00010416,2]
[399453762,1766367038846,-150.0,0.00010685,2]
[399453764,1766367038856,-206.00475007,0.00010685,2]
[399453766,1766367038866,-208.07121858,0.00010685,2]
[399453769,1766367038877,-153.7059592,0.00010685,2]
[399453771,1766367038887,-332.28265166,0.00010685,2]
[399453773,1766367038900,-167.71734834,0.00010685,2]
[399453775,1766367038910,-150.0,0.00010685,2]
[399453777,1766367038920,-60.06041096,0.00010685,2]
[399453882,1766367040279,-96.14912938,0.00010685,2]
[399453884,1766367040289,-150.0,0.00010685,2]
[399453886,1766367040298,-150.0,0.00010685,2]
[399453888,1766367040308,-294.18405332,0.00010685,2]
[399453890,1766367040317,-560.37,0.00010788,2]
[399453892,1766367040326,-55.80047347,0.00010789,2]
[399453894,1766367040338,-350.84434074,0.00010789,2]
[399453896,1766367040347,-117.08565926,0.00010822,2]
[399453935,1766367040702,-3e-08,0.00010822,2]
[399454013,1766367043181,-382.91434071,0.00010822,2]
[399454014,1766367043191,-155.51034516,0.00010822,2]
[399454015,1766367043200,-150.0,0.00010822,2]
[399454016,1766367043211,-261.57531413,0.00010822,2]
[399454017,1766367043222,-7.57729765,0.00010822,2]
[399454018,1766367043233,-2395.96130974,0.0001089,2]
[399454019,1766367043243,-500.0,0.00010959,2]
[399454020,1766367043253,-150.0,0.00010959,2]
[399454021,1766367043262,-500.0,0.00010959,2]
[399454022,1766367043271,-500.0,0.00010959,2]
[399454023,1766367043280,-500.0,0.00010959,2]
[399454024,1766367043289,-500.0,0.00010959,2]
[399454026,1766367043299,-500.0,0.00010959,2]
[399454028,1766367043308,-500.0,0.00010959,2]
[399454030,1766367043317,-500.0,0.00010959,2]
[399454031,1766367043326,-573.21727082,0.00010959,2]
[399454032,1766367043335,-175.18901635,0.00010965,2]
[399454033,1766367043350,-126.47371323,0.00010965,2]
[399454034,1766367043360,-1000.0,0.00010986,2]
[399454035,1766367043369,-492.0,0.00010986,2]
[399454036,1766367043379,-414.6843661,0.00011096,2]
[399454037,1766367043388,-266.34583011,0.00011096,2]
[399454038,1766367043397,-622.64,0.0001116,2]
[399454039,1766367043407,-1000.0,0.00012085,2]
[399454040,1766367043416,-791.0,0.00012085,2]
[399454041,1766367043425,-460.46545139,0.00012789,2]
[399454042,1766367043435,-204.41392926,0.00012999,2]
[399454043,1766367043445,-160.42090398,0.00012999,2]
[399454044,1766367043454,-150.0,0.00012999,2]
[399454045,1766367043464,-150.0,0.00012999,2]
[399454046,1766367043474,-500.0,0.00012999,2]
[399454047,1766367043483,-415.0,0.00013003,2]
[399454048,1766367043492,-150.0,0.00013136,2]
[399454049,1766367043504,-151.95164841,0.00013136,2]
[399454050,1766367043513,-500.0,0.00013136,2]
[399454051,1766367043523,-500.0,0.00013273,2]
[399454052,1766367043532,-500.0,0.00013273,2]
[399454053,1766367043543,-500.0,0.00013273,2]
[399454054,1766367043553,-500.0,0.00013273,2]
[399454055,1766367043563,-500.0,0.00013273,2]
[399454056,1766367043572,-500.0,0.00013273,2]
[399454057,1766367043582,-500.0,0.00013273,2]
[399454058,1766367043592,-150.0,0.00013273,2]
[399454059,1766367043603,-500.0,0.00013273,2]
[399454060,1766367043612,-158.862,0.00013273,2]
[399454061,1766367043621,-1000.0,0.00013293,2]
[399454062,1766367043630,-798.0,0.00013293,2]
[399454063,1766367043639,-206.68660773,0.0001341,2]
[399454064,1766367043648,-538.05940211,0.0001341,2]
[399454065,1766367043657,-335.3883962,0.00013673,2]
[399454066,1766367043666,-500.0,0.00013698,2]
[399454067,1766367043675,-500.0,0.00013698,2]
[399454068,1766367043684,-502.04202756,0.00013698,2]
[399454069,1766367043693,-500.0,0.00013698,2]
[399454070,1766367043702,-500.0,0.00013698,2]
[399454071,1766367043712,-500.0,0.00013698,2]
[399454072,1766367043724,-500.0,0.00013698,2]
[399454073,1766367043736,-500.0,0.00013698,2]
[399454074,1766367043745,-500.0,0.00013698,2]
[399454075,1766367043754,-277.36,0.00013698,2]
[399454076,1766367043763,-500.0,0.00013698,2]
[399454077,1766367043772,-559.0034858,0.00013698,2]
[399454078,1766367043782,-1000.0,0.00013699,2]
[399454079,1766367043791,-500.0,0.00013699,2]
[399454080,1766367043800,-607.31949501,0.00013699,2]
[399454081,1766367043809,-372.51999591,0.00013699,2]
[399454082,1766367043819,-449.47080907,0.00013699,2]
[399454083,1766367043829,-500.0,0.00013699,2]
[399454084,1766367043839,-500.0,0.00013699,2]
[399454085,1766367043848,-486.24431256,0.00013699,2]
[399454086,1766367043857,-346.08132901,0.00013699,2]
[399454087,1766367043867,-500.0,0.00013699,2]
[399454088,1766367043876,-500.0,0.00013699,2]
[399454089,1766367043886,-500.0,0.00013699,2]
[399454090,1766367043895,-500.0,0.00013699,2]
[399454091,1766367043905,-500.0,0.00013699,2]
[399454092,1766367043915,-500.0,0.00013699,2]
[399454093,1766367043924,-500.0,0.00013699,2]
[399454094,1766367043934,-1831.32325784,0.00013699,7]
[399454095,1766367043946,-168.67674216,0.00013699,7]
[399454096,1766367043956,-500.0,0.00013699,2]
[399454097,1766367043965,-487.93371002,0.00013699,2]
[399454098,1766367043974,-309.17935747,0.00013699,2]
[399454099,1766367043985,-479.2099264,0.00013699,2]
[399454100,1766367043993,-243.163071,0.00013699,2]
[399454101,1766367044003,-500.0,0.00013699,2]
[399454102,1766367044013,-500.0,0.00013699,2]
[399454103,1766367044022,-500.45883633,0.00013699,2]
[399454104,1766367044031,-500.0,0.00013699,2]
[399454105,1766367044040,-501.11652893,0.00013699,2]
[399454106,1766367044049,-313.55115194,0.00013699,2]
[399454107,1766367044059,-66.93720109,0.00013699,2]
[399454108,1766367044070,-371.12484557,0.00013699,2]
[399454111,1766367046217,-187.93795334,0.00013699,2]
[399454112,1766367046227,-160.0,0.00013699,2]
[399454113,1766367046238,-156.16338798,0.00013737,2]
[399454114,1766367046247,-392.33113714,0.00013821,2]
[399454115,1766367046257,-1000.0,0.00013821,2]
[399454116,1766367046267,-1000.0,0.00013821,2]
[399454117,1766367046276,-1000.0,0.00013821,2]
[399454118,1766367046286,-1000.0,0.00013821,2]
[399454119,1766367046295,-626.0,0.00013836,2]
[399454120,1766367046308,-626.0,0.00013973,2]
[399454121,1766367046317,-626.0,0.0001411,2]
[399454122,1766367046327,-343.1070286,0.00014247,2]
[399454123,1766367046336,-1000.0,0.00014247,2]
[399454124,1766367046345,-1000.0,0.00014247,2]
[399454125,1766367046354,-500.0,0.00014247,2]
[399454126,1766367046363,-500.0,0.00014247,2]
[399454127,1766367046372,-1000.0,0.00014247,2]
[399454128,1766367046381,-1000.0,0.00014247,2]
[399454129,1766367046391,-1000.0,0.00014247,2]
[399454130,1766367046400,-1000.0,0.00014247,2]
[399454131,1766367046409,-626.0,0.00014247,2]
[399454132,1766367046419,-260.0,0.00014247,2]
[399454133,1766367046428,-1500.0,0.00014368,2]
[399454134,1766367046437,-1500.0,0.00014368,2]
[399454135,1766367046447,-1500.0,0.00014368,2]
[399454136,1766367046458,-1500.0,0.00014368,2]
[399454137,1766367046467,-626.0,0.00014384,2]
[399454138,1766367046477,-2000.0,0.00014514,7]
[399454139,1766367046486,-626.0,0.00014521,2]
[399454140,1766367046497,-626.0,0.00014658,2]
[399454141,1766367046511,-514.28608856,0.00014789,2]
[399454142,1766367046520,-1500.0,0.00014795,2]
[399454143,1766367046530,-1500.0,0.00014795,2]
[399454144,1766367046539,-1500.0,0.00014795,2]
[399454145,1766367046550,-1500.0,0.00014795,2]
[399454146,1766367046560,-1500.0,0.00014795,2]
[399454147,1766367046568,-626.0,0.00014795,2]
[399454148,1766367046578,-360.0,0.00014795,2]
[399454149,1766367046589,-176.28324755,0.00014816,2]
[399454150,1766367046600,-238.4079696,0.00014872,2]
[399454151,1766367046609,-362.15814534,0.00014872,2]
[399454152,1766367046620,-226.25400791,0.00014916,2]
[399454153,1766367046629,-274.02193084,0.00014916,2]
[399454154,1766367046638,-493.23947552,0.00014916,2]
[399454155,1766367046648,-876.8701787,0.00014916,2]
[399454156,1766367046658,-281.55862558,0.00014916,2]
[399454157,1766367046667,-321.78128638,0.00014916,2]
[399454158,1766367046677,-2000.0,0.00014916,2]
[399454159,1766367046687,-2000.0,0.00014916,2]
[399454160,1766367046696,-2000.0,0.00014916,2]
[399454161,1766367046706,-876.76649653,0.00014916,2]
[399454162,1766367046715,-626.0,0.00014932,2]
[399454163,1766367046724,-150.0,0.00015,2]
[399454164,1766367046734,-1000.0,0.00015,2]
[399454165,1766367046743,-183.505258,0.00015068,2]
[399454166,1766367046753,-626.0,0.00015069,2]
[399454167,1766367046763,-626.0,0.00015206,2]
[399454168,1766367046773,-2000.0,0.00015329,7]
[399454169,1766367046782,-460.0,0.00015342,2]
[399454170,1766367046792,-751.5551774,0.00015342,2]
[399454171,1766367046803,-1761.58106848,0.00015342,2]
[399454172,1766367046813,-502.292195,0.00015342,2]
[399454173,1766367046822,-2000.0,0.00015342,2]
[399454174,1766367046832,-2000.0,0.00015342,2]
[399454175,1766367046841,-2000.0,0.00015342,2]
[399454176,1766367046850,-626.0,0.00015343,2]
[399454177,1766367046860,-2500.0,0.00015464,2]
[399454178,1766367046869,-2500.0,0.00015464,2]
[399454179,1766367046879,-2500.0,0.00015464,2]
[399454180,1766367046888,-100000.0,0.00015466,2]
[399454181,1766367046897,-626.0,0.0001548,2]
[399454182,1766367046908,-626.0,0.00015617,2]
[399454183,1766367046917,-307.9493839,0.00015655,7]
[399454184,1766367046927,-301.58594448,0.00015655,7]
[399454185,1766367046936,-183.03867961,0.00015655,7]
[399454186,1766367046945,-731.42256372,0.00015655,7]
[399454187,1766367046954,-439.31933179,0.00015655,7]
[399454188,1766367046963,-164.12695042,0.00015655,7]
[399454189,1766367046973,-333.84081558,0.00015655,7]
[399454190,1766367046983,-182.43767835,0.00015655,7]
[399454191,1766367046992,-1334.02789904,0.00015655,7]
[399454192,1766367047002,-626.0,0.00015754,2]
[399454193,1766367047011,-246.37,0.000158,2]
[399454194,1766367047020,-560.0,0.0001589,2]
[399454195,1766367047031,-2500.0,0.0001589,2]
[399454196,1766367047041,-2500.0,0.0001589,2]
[399454197,1766367047050,-2500.0,0.0001589,2]
[399454198,1766367047059,-626.0,0.00015891,2]
[399454199,1766367047068,-969.19449005,0.00015975,2]
[399454200,1766367047077,-1379.54155,0.00016,2]
[399454201,1766367047087,-500.0,0.00016,2]
[399454202,1766367047095,-415.0,0.00016003,2]
[399454203,1766367047105,-3000.0,0.00016012,2]
[399454204,1766367047114,-3000.0,0.00016012,2]
[399454205,1766367047123,-3000.0,0.00016012,2]
[399454206,1766367047134,-626.0,0.00016028,2]
[399454207,1766367047144,-2000.0,0.00016144,7]
[399454208,1766367047153,-626.0,0.00016165,2]
[399454209,1766367047162,-626.0,0.00016302,2]
[399454210,1766367047171,-151.0,0.00016438,2]
[399454211,1766367047181,-203.100313,0.00016438,2]
[399454212,1766367047191,-293.834243,0.00016438,2]
[399454213,1766367047200,-293.834243,0.00016438,2]
[399454214,1766367047209,-293.834243,0.00016438,2]
[399454215,1766367047218,-293.834243,0.00016438,2]
[399454216,1766367047226,-240.9,0.00016438,2]
[399454217,1766367047235,-500.0,0.00016438,2]
[399454218,1766367047244,-500.0,0.00016438,2]
[399454219,1766367047254,-500.0,0.00016438,2]
[399454220,1766367047263,-515.60073788,0.00016438,2]